Cogmind - Beta 14 @@@ ROGUE MODE // 2025.03.03 @ 23:15:15 Player: DietSnapple Result: Destroyed by as-09847 with Assembled Rifle Performance ------------- Evolutions (1) 500 Regions Visited (5) 1000 Robots Destroyed (23) 115 Value Destroyed (593) 593 Prototype IDs (1) 20 Alien Tech Used (0) 0 Bonus (120) 120 TOTAL SCORE: 2348 Bonus ------- Follower Combat Kills 120 Cogmind --------- Core Integrity 0/400 Matter 233/300 Energy 81/100 System Corruption 17% Temperature Cool (0) Movement Core (750) Ox14 Location -9/Exiles Parts ------- > --- POWER (1) -------- (None) > --- PROPULSION (2) --- (None) > --- UTILITY (4) ------ High-capacity Storage Unit Improved Trap Extractor (0/6) > --- WEAPON (2) ------- (None) > --- INVENTORY (20) --- Ion Engine Light Nuclear Core Aluminum Leg Carbon-fiber Leg Heat Sink Cooling System Large Storage Unit Large Storage Unit High-capacity Storage Unit Large Battery (200) Particle Charger Heavy EM Pulse Gun Beam Rifle Heavy Flail Peak State ------------ > --- POWER ------------ Ion Engine > --- PROPULSION ------- Improved Treads Improved Treads > --- UTILITY ---------- High-capacity Storage Unit Experimental Sensor Array Hardened Medium Armor Plating Improved Light Armor Plating > --- WEAPON ----------- Pulse Rifle EM Pulse Cannon > --- INVENTORY -------- Ion Engine Light Nuclear Core Aluminum Leg Carbon-fiber Leg Heat Sink Cooling System Large Storage Unit Large Storage Unit High-capacity Storage Unit Large Battery Particle Charger Improved Trap Extractor Heavy EM Pulse Gun Heavy EM Pulse Gun Beam Rifle Heavy Flail [Rating: 30] Favorites ----------- Power Ion Engine Engine Ion Engine Power Core Light Nuclear Core Propulsion Improved Treads Treads Improved Treads Utility Large Storage Unit Device Heat Sink Storage Large Storage Unit Protection Hardened Medium Armor Plating Weapon Heavy EM Pulse Gun Energy Gun Heavy EM Pulse Gun Energy Cannon EM Pulse Cannon Build | -11 -10 -10 -9 -9 -9 ------- Run | Yrd Mat Min Mat Min Exi Slots Evolved 2 | . . . 2 . . Power . | . . . . . . Propulsion . | . . . . . . Utility 2 | . . . 2 . . Weapon . | . . . . . . Parts Attached 41 | 6 19 4 4 . 8 Power 6 | 1 2 3 . . . Engine 5 | 1 2 2 . . . Core 1 | . . 1 . . . Reactor . | . . . . . . Propulsion 6 | 2 4 . . . . Treads 6 | 2 4 . . . . Leg . | . . . . . . Wheel . | . . . . . . Hover . | . . . . . . Flight . | . . . . . . Utility 15 | 1 5 . 3 . 6 Device 6 | . 3 . 2 . 1 Storage 7 | 1 2 . . . 4 Processor . | . . . . . . Hackware . | . . . . . . Protection 2 | . . . 1 . 1 Artifact . | . . . . . . Weapon 14 | 2 8 1 1 . 2 Energy Gun 13 | 2 8 . 1 . 2 Energy Cannon 1 | . . 1 . . . Ballistic Gun . | . . . . . . Ballistic Cannon . | . . . . . . Launcher . | . . . . . . Special Weapon . | . . . . . . Impact Weapon . | . . . . . . Slashing Weapon . | . . . . . . Piercing Weapon . | . . . . . . Special Melee Weapon . | . . . . . . Unidentified Prototypes 1 | . . . 1 . . Parts Lost 13 | . 3 1 . . 9 Power 2 | . 1 . . . 1 Propulsion 2 | . . . . . 2 Utility 3 | . . . . . 3 Weapon 6 | . 2 1 . . 3 Highest Loss Streak 9 | . 3 1 . . 9 To Critical Strikes . | . . . . . . Average Slot Usage (%) 97 | . 95 99 99 100 97 Engine 12 | . 13 14 11 11 10 Treads 25 | . 27 28 22 22 21 Device 13 | . 8 14 21 22 15 Storage 13 | . 15 14 11 11 11 Protection 4 | . . . 11 11 16 Energy Gun 20 | . 27 20 11 11 10 Energy Cannon 5 | . . 6 11 11 10 Peak Build Rating 30 | 6 12 15 28 28 30 Average Rating 17 | 3 11 13 27 28 28 On Entrance 14 | . 6 12 15 28 28 Naked Turns . | . . . . . . Heaviest Build 66 | 12 49 35 44 44 66 Greatest Support 46 | 40 46 46 46 46 46 Greatest Overweight (x) 14 | . 1 . . . 14 Average Overweight (x) . | . . . . . . Largest Inventory Capacity 20 | 8 15 15 15 15 20 Average Capacity 13 | 6 11 15 15 15 18 Most Carried 17 | 5 12 15 14 14 17 Average Carried 10 | 3 8 12 12 14 15 Final Capacity 20 | 8 15 15 15 15 20 Final Carried 14 | 4 12 13 14 14 14 Class Distribution -------------------- 100% | Mutant Dominant Class ---------------- Mutant | -10/Materials Mutant | -10/Mines Mutant | -9/Materials Mutant | -9/Mines Mutant | -9/Exiles Resources | -11 -10 -10 -9 -9 -9 ----------- Run | Yrd Mat Min Mat Min Exi Matter Collected 725 | 197 302 176 50 . . Remotely . | . . . . . . Salvage Created 764 | . 396 228 105 35 . Parts 43 | . 22 8 13 . . Haulers Intercepted . | . . . . . . Recyclers Shooed . | . . . . . . Parts Field Recycled . | . . . . . . Retrieved Matter . | . . . . . . Parts Self-Destructed . | . . . . . . Prevented . | . . . . . . Kills | -11 -10 -10 -9 -9 -9 ------- Run | Yrd Mat Min Mat Min Exi Combat Hostiles Destroyed 25 | . 10 6 6 3 . Guns 16 | . 7 4 4 1 . Cannons 6 | . . 2 2 2 . AOE 2 | . 2 . . . . Classes Destroyed 4 | . 3 . . 1 . Watcher 1 | . 1 . . . . Swarmer 10 | . 3 2 5 . . Grunt 12 | . 7 4 1 . . Assembled 3 | . . . . 3 . Best Kill Streak 5 | . 5 2 3 2 . Combat Bots Only 5 | . 5 2 3 2 . Max Kills in Single Turn 1 | . 1 1 1 1 . Gunslinging . | . . . . . . Exploded 1 | . 1 . . . . Melee . | . . . . . . Uniques/NPCs Destroyed . | . . . . . . Combat | -11 -10 -10 -9 -9 -9 -------- Run | Yrd Mat Min Mat Min Exi Hostile Shots Fired 206 | . 82 18 11 29 66 Missed 53 | . 21 8 3 8 13 Damage Taken 2132 | . 619 170 128 339 876 Core 543 | . 121 13 . 70 339 Absorbed by Shields . | . . . . . . Core Remaining (%) 73 | 100 . 46 . . . Volleys Fired 63 | . 26 14 9 7 7 Largest 2 | . 2 2 2 2 2 Hottest 126 | . 112 108 126 126 126 Shots Fired 113 | . 45 28 18 14 8 Gun 87 | . 45 21 9 7 5 Cannon 26 | . . 7 9 7 3 Launcher . | . . . . . . Special . | . . . . . . Kinetic . | . . . . . . Thermal 35 | . 18 . 9 7 1 Explosive . | . . . . . . Electromagnetic 78 | . 27 28 9 7 7 Robot Hit Streak 6 | . 6 4 3 4 5 Robot Miss Streak 3 | . 2 3 2 2 3 Penetration Max . | . . . . . . Secondary Targets . | . . . . . . Shots Hit Robots 67 | . 29 16 8 9 5 Core Hits 33 | . 13 8 6 5 1 Critical Kills . | . . . . . . Critical Parts Destroyed . | . . . . . . Critical Strikes . | . . . . . . Melee Attacks . | . . . . . . Impact . | . . . . . . Slashing . | . . . . . . Piercing . | . . . . . . Sneak Attacks . | . . . . . . Combat Hostiles . | . . . . . . Follow-up Attacks . | . . . . . . Damage Inflicted 1285 | . 595 286 145 206 53 Guns 895 | . 478 163 102 99 53 Cannons 255 | . . 123 43 89 . Explosions 117 | . 117 . . . . Melee . | . . . . . . Ramming 18 | . . . . 18 . Kinetic . | . . . . . . Thermal 494 | . 293 . 102 99 . Explosive . | . . . . . . Electromagnetic 773 | . 302 286 43 89 53 Impact . | . . . . . . Slashing . | . . . . . . Piercing . | . . . . . . Highest Corruption 17 | . . . 4 4 17 Average Corruption 4 | . . . 3 4 4 Corruption Purged . | . . . . . . Corruption Blocked . | . . . . . . Effects 32 | . . . 11 6 15 Message Errors 6 | . . . 3 1 2 Matter Fused 7 | . . . 2 2 3 Heat Flow Errors 4 | . . . 1 1 2 Energy Discharges 5 | . . . 2 1 2 Parts Fused 1 | . . . 1 . . Data Loss (minor) 6 | . . . 1 1 4 Misfires 1 | . . . . . 1 Alerts 1 | . . . 1 . . Weapon Failures 1 | . . . . . 1 Overload Shots . | . . . . . . Overflow Damage 9 | . . . . 9 . Projectiles 9 | . . . . 9 . Explosions . | . . . . . . Melee . | . . . . . . Knockbacks . | . . . . . . Impact . | . . . . . . Kinetic . | . . . . . . Secondary . | . . . . . . Self-Inflicted Damage . | . . . . . . Shots . | . . . . . . Rammed 2 | . . . . 2 . Targets Rammed 2 | . . . . 2 . Kicked . | . . . . . . Crushed . | . . . . . . Highest Temperature 472 | . 472 72 226 227 168 Average Temperature 87 | . 139 27 69 77 48 Received Heat Transfer 570 | . 219 60 51 180 60 Effects 5 | . 5 . . . . Shutdowns 1 | . 1 . . . . Interference 3 | . 3 . . . . Damage (minor) 1 | . 1 . . . . Siege Activations . | . . . . . . Robots Corrupted . | . . . . . . Combat Hostiles . | . . . . . . Parts Fried . | . . . . . . Impact Corruptions . | . . . . . . Robots Melted 1 | . 1 . . . . Combat Hostiles 1 | . 1 . . . . Parts Melted 2 | . 2 . . . . Heat Transferred 1038 | . 594 . 222 222 . Parts Sabotaged . | . . . . . . Parts Stolen . | . . . . . . Parts Stripped . | . . . . . . Power Chain Reactions 2 | . 2 . . . . Alert | -11 -10 -10 -9 -9 -9 ------- Run | Yrd Mat Min Mat Min Exi Peak Influence 225 | . 135 225 194 15 . Initial 29 | . . 29 13 . . Average 35 | . 28 70 29 3 . Maximum Alert Level 1 | . . 1 . . . Low Security (%) 98 | 100 100 92 100 100 . Level 1 1 | . . 7 . . . Level 2 . | . . . . . . Level 3 . | . . . . . . Level 4 . | . . . . . . Level 5 . | . . . . . . High Security . | . . . . . . Max Security . | . . . . . . Squads Dispatched 4 | . 2 1 1 . . Investigation 1 | . . . 1 . . Extermination . | . . . . . . Reinforcement 2 | . 2 . . . . Assault 1 | . . 1 . . . Garrison . | . . . . . . Intercept . | . . . . . . Searches Triggered . | . . . . . . Construction Impeded . | . . . . . . Haulers Reinforced . | . . . . . . Active Scanning Responses . | . . . . . . Cargo Convoy Interrupts . | . . . . . . Stealth | -11 -10 -10 -9 -9 -9 --------- Run | Yrd Mat Min Mat Min Exi Distress Signals 4 | . 3 . . 1 . Communications Jammed . | . . . . . . Distress Signals . | . . . . . . Times Spotted 72 | . 26 14 15 4 13 Peak Tracking Total 14 | . 5 4 3 6 14 Tactical Retreats 8 | . 2 2 . 2 2 Traps | -11 -10 -10 -9 -9 -9 ------- Run | Yrd Mat Min Mat Min Exi Traps Triggered 4 | . . 1 3 . . Indirectly . | . . . . . . Trap Hack Attempts . | . . . . . . Triggered . | . . . . . . Disarmed . | . . . . . . Reprogrammed . | . . . . . . Reused . | . . . . . . Traps Extracted . | . . . . . . Installed . | . . . . . . Triggered . | . . . . . . Machines | -11 -10 -10 -9 -9 -9 ---------- Run | Yrd Mat Min Mat Min Exi Machines Disabled 5 | . 1 . 1 1 2 Max in Single Turn 1 | . 1 . 1 1 1 Machines Repaired . | . . . . . . Machines Dismantled . | . . . . . . Machines Sabotaged . | . . . . . . Overloaded Fab Kills . | . . . . . . Hacking | -11 -10 -10 -9 -9 -9 --------- Run | Yrd Mat Min Mat Min Exi Machines Accessed 3 | . 1 1 1 . . Terminals 2 | . 1 . 1 . . Fabricators . | . . . . . . Repair Stations . | . . . . . . Recycling Units . | . . . . . . Scanalyzers . | . . . . . . Garrison Access . | . . . . . . Total Hacks 5 | . 3 1 1 . . Successful 4 | . 2 1 1 . . Failed 1 | . 1 . . . . Catastrophic . | . . . . . . Database Lockouts . | . . . . . . Manual . | . . . . . . Terminals 4 | . 3 . 1 . . Fabricators . | . . . . . . Repair Stations . | . . . . . . Recycling Units . | . . . . . . Scanalyzers . | . . . . . . Garrison Access . | . . . . . . Terminal Hacks 4 | . 2 1 1 . . Record 1 | . 1 . . . . Open Door 1 | . . 1 . . . Hauler Manifests 1 | . 1 . . . . Zone Layout 1 | . . . 1 . . Fabricator Hacks . | . . . . . . Repair Station Hacks . | . . . . . . Recycling Unit Hacks . | . . . . . . Scanalyzer . | . . . . . . Garrison Access Hacks . | . . . . . . Unauthorized Hacks . | . . . . . . Terminals . | . . . . . . Fabricators . | . . . . . . Repair Stations . | . . . . . . Recycling Units . | . . . . . . Scanalyzers . | . . . . . . Garrison Access . | . . . . . . Data Cores Recovered . | . . . . . . Used . | . . . . . . Hacking Detections . | . . . . . . Full Trace Events . | . . . . . . Feedback Events . | . . . . . . Feedback Blocked . | . . . . . . Robot Schematics Acquired . | . . . . . . Robots Built . | . . . . . . Authchips . | . . . . . . Time . | . . . . . . Total Robot Build Rating . | . . . . . . Part Schematics Acquired . | . . . . . . Parts Built . | . . . . . . Authchips . | . . . . . . Time . | . . . . . . Total Part Build Rating . | . . . . . . Parts Repaired . | . . . . . . Time . | . . . . . . Parts Recycled . | . . . . . . Recycled Matter . | . . . . . . Retrieved Matter . | . . . . . . Retrieved Components . | . . . . . . Parts Scanalyzed . | . . . . . . Part Schematics Acquired . | . . . . . . Parts Damaged . | . . . . . . Bothacking | -11 -10 -10 -9 -9 -9 ------------ Run | Yrd Mat Min Mat Min Exi Used RIF Installer . | . . . . . . Robots Hacked . | . . . . . . Non-combat . | . . . . . . Combat . | . . . . . . Robot Hacks Applied . | . . . . . . Relay Couplers Released . | . . . . . . Fabnet Peak Effective % . | . . . . . . Robots Rewired . | . . . . . . Allies Hacked . | . . . . . . Hacks Repelled . | . . . . . . Allies | -11 -10 -10 -9 -9 -9 -------- Run | Yrd Mat Min Mat Min Exi Total Allies 1 | . . 1 . . . Largest Group 1 | . . 1 . . . Highest-Rated Group 31 | . . 31 . . . Highest-Rated Ally 31 | . . 31 . . . Total Orders . | . . . . . . Ally Attacks 13 | . . 13 . . . Total Damage 171 | . . 171 . . . Kills 4 | . . 4 . . . Allies Corrupted . | . . . . . . Allies Melted . | . . . . . . Intel | -11 -10 -10 -9 -9 -9 ------- Run | Yrd Mat Min Mat Min Exi Robot Analysis Total . | . . . . . . Derelict Logs Recovered 3 | . . 3 . . . Drone Launches . | . . . . . . Drone Recoveries . | . . . . . . Exploration | -11 -10 -10 -9 -9 -9 ------------- Run | Yrd Mat Min Mat Min Exi Turns Passed 4784 | 215 1867 1089 752 377 484 Spaces Moved 2718 | 187 1030 625 431 221 224 Core 95 | 93 . . . . 2 Treads 2623 | 94 1030 625 431 221 222 Legs . | . . . . . . Wheels . | . . . . . . Hover . | . . . . . . Flight . | . . . . . . Fastest Speed 50 | 50 160 160 160 160 160 Average Speed 162 | 105 166 160 160 160 204 Slowest Speed 750 | 160 240 160 160 160 750 Overloaded Moves . | . . . . . . Propulsion Burnouts . | . . . . . . Robots Hopped . | . . . . . . Cave-ins Triggered . | . . . . . . Exploration Rate (%) 41 | 5 68 67 27 22 57 Regions Visited 5 Branch Regions 3 Pre-discovered Areas 1 | . . 1 . . . Known Exits Taken 1 | . . . 1 . . Unknown Exits Taken 4 | 1 1 1 . 1 . Scrap Searched . | . . . . . . Spaces Dug . | . . . . . . Terrain Destroyed 3 | . 3 . . . . Melee . | . . . . . . Projectile . | . . . . . . AOE 3 | . 3 . . . . Terrain Rammed . | . . . . . . Walls Destroyed . | . . . . . . Machines Disabled . | . . . . . . Actions | -11 -10 -10 -9 -9 -9 --------- Run | Yrd Mat Min Mat Min Exi Total 2995 | 206 1143 691 476 229 250 Wait 81 | . 23 26 29 . 3 Move 2713 | 186 1029 624 430 220 224 Hop . | . . . . . . Pick Up 54 | 12 25 12 3 . 2 Fast Attach 3 | . 3 . . . . Attach 24 | 6 7 1 3 . 7 Detach 10 | . 4 . 1 . 5 Swap 14 | . 9 3 1 . 1 Drop 31 | 2 17 11 . . 1 Fire 63 | . 26 14 9 7 7 Melee . | . . . . . . Ram . | . . . . . . Kick . | . . . . . . Crush 2 | . . . . 2 . Escape Stasis . | . . . . . . Rewire . | . . . . . . Trap . | . . . . . . Miscellaneous . | . . . . . . Route ------- -11/Scrapyard -10/Materials (discovered 4 exits: *Mat x2 / *Min x2) -10/Mines (discovered 3 exits: *Mat x2 / Sub) -9/Materials -9/Mines -9/Exiles History --------- Turn | Location | Event 13 | -11/Scrapyard | Discovered new exit (range 16) 216 | -11/Scrapyard | Entered Materials 311 | -10/Materials | Build established: Mutant 573 | -10/Materials | Discovered new exit (range 16) 905 | -10/Materials | Lost 3 parts (1p2w) 1317 | -10/Materials | Discovered new exit (range 16) 1607 | -10/Materials | Discovered new exit (range 14) 1627 | -10/Materials | Discovered new exit (range 16) 2083 | -10/Materials | Entered Mines 2173 | -10/Mines | Discovered new exit (range 6) 2176 | -10/Mines | Met a Derelict testing a Signal Generator 2327 | -10/Mines | Learned location of Recycling (-7) 2360 | -10/Mines | Found a damaged Exp. Sensor Array with a note attached 2368 | -10/Mines | Found Prototype Device 2602 | -10/Mines | Learned 2 Materials zone layouts 2606 | -10/Mines | Met a Derelict who couldn't figure out how to use a Trap Extractor 2623 | -10/Mines | Core integrity fell below 50% 2694 | -10/Mines | Discovered new exit (range 7) 2850 | -10/Mines | Identified exit to Subcaves 3172 | -10/Mines | Entered Materials 3172 | -9/Materials | Evolved 2 slots: Utility x2 3173 | -9/Materials | Identified exit to Mines 3175 | -9/Materials | Identified Exp. Sensor Array 3924 | -9/Materials | Entered Mines 3946 | -9/Mines | Met a Derelict bent on vengeance 4067 | -9/Mines | Deemed a non-threat by the Exiles lab entrance 4068 | -9/Mines | Discovered new exit (range 5) 4180 | -9/Mines | Assembled infested the area 4301 | -9/Mines | Entered Exiles 4376 | -9/Exiles | Met 8R-AWN 4410 | -9/Exiles | Met EX-HEX 4551 | -9/Exiles | Met EX-DEC 4628 | -9/Exiles | Visited The Gauntlet 4716 | -9/Exiles | Attacked by the Exiles 4768 | -9/Exiles | System corruption reached 10% 4778 | -9/Exiles | Core integrity fell below 50% 4782 | -9/Exiles | Core integrity fell below 20% 4785 | -9/Exiles | Destroyed by as-09847 with Assembled Rifle Last Messages --------------- 04716_ Machine disabled. 04732_ M>GBA #PN3/QRCM9TYGVPT# 04745_ Machine disabled. 04747_ Hrd. Medium Armor Plating destroyed. 04752_ Pulse Rifle destroyed. 04752_ System corrupted by crushing effect (+4). 04757_ System corrupted: Matter fused (-7). 04760_ EM Pulse Cannon destroyed. 04764_ System corrupted: Hvy. EM Pulse Gun failed to cycle. 04765_ Exp. Sensor Array destroyed. 04767_ Imp. Treads destroyed. 04767_ System corrupted by crushing effect (+3). 04770_ Ion Engine destroyed. 04770_ System corrupted by crushing effect (+3). 04771_ Hvy. EM Pulse Gun destroyed. 04771_ Imp. Light Armor Plating destroyed. 04773_ as-50212 destroyed. 04774_ Imp. Treads destroyed. 04774_ System corrupted by crushing effect (+3). 04775_ System corrupted: Matter fused (-10). Map ----- +----------------------------------------------------+ | ????????????????????????????????????????????#"" | | ????????????????????????????????????????????#"""" | | ?????????????????????????????????????????????# | | ?????????????????????????????????????????????#" | | ?????????????????????????????????????????????#"""" | | ?????????????????????????????????????????????#"" | | ?????????????????????????????????????????????#" | | ?????????????????????????????????????????????#""" | | ?????????????????????????????????????????????## | | ??????????????????????????????????????????????#"" | | ??????????????????????????????????????????????##"" | | ???????????????????????????????????????????????##" | | ????????????????????????????????????????????????## | | ?????????????????????????????????????????????????? | | ?????????????????????????????????????????????????? | | ?????????????????????????????????????????????????? | | ?????????????????????????????????????????????????? | | ?????????????????????????????????????????????????? | | ??????????????????????#########??????????????????? | | ??????????????????????#"""""""#?????"""""????""""" | | ??????????????????????#"" ""#???"""""""????""""" | | ??????????????????????#" "#??"""""" "#??#" "" | | ??????????????????????#"" ""#""#""" """????"" " | | ???????????????????????"" ""#""#"" ""????"" | | ???????????????????######"""###""###"""########""" | | ?????????????????#"""" ""@ a """"""" """""""" | | ?????????????????#" a """""" """""" | | ?????????????????#""" a | | ?????????????????#"""" aa | | ?????????????????#"" a | | ?????????????????#""" | | ?????????????????#"" """ """""" " """"" | | ?????????????????########"""########"""###""###""" | | ???????????????????????"" "?????"" ""#""#"" | | ???????????????????????""" ""?????""" ""#""#""" | | ???????????????????????" """ ????#" """"""""#" " | | ????????????????????????"""""?????"""""""????""""" | | ??????????????????????????????????""""""?????""""" | | ???????????????????????????????????????????????### | | ?????????????????????????????????????????????????? | | ?????????????????????????????????????????????????? | | ?????????????????????????????????????????????????? | | ?????????????????????????????????????????????????? | | | | | | | | | | | | | | | +----------------------------------------------------+ Best States ------------- Heat Dissipation 38 Energy Generation 10 Energy Capacity 250 Matter Stores 300 Matter Capacity 300 Sight Range 16 Robot Scan Range 20 Terrain Scan Range 14 Terrain Scan Density 10 ECM Strength 1 Armor Coverage 375 Evasion (%) 50 Recoil Reduction 2 Trap Extractor Capacity 6 Item Schematics ----------------- None Robot Schematics ------------------ None Fabricated ------------ Nothing Alien Tech Used ----------------- None Achievements -------------- I Survived The Infestation It's Just You Tourist Challenges ------------ None Game ------ Seed AutogunHybridSheargun Manual? 0 Play Time 01:01:18 Cumulative 3.4 hours Start 2025.03.03 @ 21:15:04 End 2025.03.03 @ 23:15:15 Sessions 3 Manual Loads 0 Difficulty Rogue Special Mode None Game No. 8 Rogue 1 Adventurer 7 Explorer 0 Win Type - Total 0 Types 0/0/0/0/0/0/0/0/0 Lore% 1 Gallery% 6 Achievement% 7 Wizard Run 0 Options --------- Layout 1 ASCII 0 Keyboard 1 Movement Vi Keybinds 0 Fullscreen 1 Font 24/Smallcaps Map View 76x35 Zoom Use 0% Tactical HUD 1 Map Filters NONE Filters NONE Steam 1 RUN: 4ea96809-5530-4834-adeb-73fabec45c9f